fUST/lending_fUST_20260502
["ID","MTS","AMOUNT","RATE_DAILY","PERIOD"]
[421440464,1777654252000,-914.34,0.00019726,2]
[421440530,1777654252000,-4078.51,0.00019726,2]
[421440523,1777654252000,-790.1,0.00019726,2]
[421440501,1777654252000,-500.0,0.00019726,2]
[421440529,1777654252000,-500.0,0.00019726,2]
[421440509,1777654252000,-724.31,0.00019726,2]
[421440508,1777654252000,-500.0,0.00019726,2]
[421440470,1777654252000,-500.0,0.00019726,2]
[421440483,1777654252000,-500.0,0.00019726,2]
[421440475,1777654252000,-500.0,0.00019726,2]
[421440482,1777654252000,-500.0,0.00019726,2]
[421440472,1777654252000,-526.79,0.00019726,2]
[421440481,1777654252000,-1436.98,0.00019726,2]
[421440473,1777654252000,-1907.7,0.00019726,2]
[421440474,1777654252000,-693.01,0.00019726,2]
[421440480,1777654252000,-5457.4,0.00019726,2]
[421440478,1777654252000,-4806.32,0.00019726,2]
[421440477,1777654252000,-629.63,0.00019726,2]
[421440479,1777654252000,-1159.69,0.00019726,2]
[421440476,1777654252000,-500.0,0.00019726,2]
[421440484,1777654252000,-500.0,0.00019726,2]
[421440471,1777654252000,-10223.07,0.00019726,2]
[421440487,1777654252000,-3256.0,0.00019726,2]
[421440510,1777654252000,-6321.13,0.00019726,2]
[421440507,1777654252000,-500.0,0.00019726,2]
[421440498,1777654252000,-500.0,0.00019726,2]
[421440494,1777654252000,-500.0,0.00019726,2]
[421440489,1777654252000,-500.0,0.00019726,2]
[421440485,1777654252000,-500.0,0.00019726,2]
[421440492,1777654252000,-500.0,0.00019726,2]
[421440490,1777654252000,-2122.69,0.00019726,2]
[421440493,1777654252000,-1017.37,0.00019726,2]
[421440496,1777654252000,-1490.57,0.00019726,2]
[421440488,1777654252000,-500.0,0.00019726,2]
[421440495,1777654252000,-500.0,0.00019726,2]
[421440486,1777654252000,-500.0,0.00019726,2]
[421440491,1777654252000,-1137.17,0.00019726,2]
[421440579,1777654253000,-500.0,0.00019726,2]
[421440587,1777654253000,-911.70515707,0.00019766,2]
[421440577,1777654253000,-500.0,0.00019726,2]
[421440586,1777654253000,-681.83373113,0.00019761,21]
[421440575,1777654253000,-500.0,0.00019726,2]
[421440568,1777654253000,-414.3660807,0.00019726,2]
[421440572,1777654253000,-965.56,0.00019726,2]
[421440571,1777654253000,-7948.0,0.00019726,2]
[421440574,1777654253000,-546.66727501,0.00019726,2]
[421440570,1777654253000,-500.0,0.00019726,2]
[421440567,1777654253000,-500.0,0.00019726,2]
[421440569,1777654253000,-976.37,0.00019726,2]
[421440573,1777654253000,-1207.09,0.00019726,2]
[421440576,1777654253000,-3994.21,0.00019726,2]
[421440581,1777654253000,-500.0,0.00019726,2]
[421440585,1777654253000,-2774.83358111,0.00019736,8]
[421440584,1777654253000,-1508.0,0.00019734,2]
[421440582,1777654253000,-500.0,0.00019726,2]
[421440583,1777654253000,-500.0,0.00019726,2]
[421440580,1777654253000,-500.0,0.00019726,2]
[421440589,1777654253000,-500.0,0.00019773,2]
[421440588,1777654253000,-555.06533048,0.00019773,2]
[421440599,1777654253000,-500.0,0.00019773,2]
[421440590,1777654253000,-500.0,0.00019773,2]
[421440596,1777654253000,-500.0,0.00019773,2]
[421440601,1777654253000,-500.0,0.00019773,2]
[421440593,1777654253000,-500.0,0.00019773,2]
[421440566,1777654253000,-17685.09,0.00019726,2]
[421440600,1777654253000,-500.0,0.00019773,2]
[421440578,1777654253000,-7748.72,0.00019726,2]
[421440565,1777654253000,-500.0,0.00019726,2]
[421440546,1777654253000,-1053.28,0.00019726,2]
[421440560,1777654253000,-500.0,0.00019726,2]
[421440592,1777654253000,-500.0,0.00019773,2]
[421440537,1777654253000,-4248.29,0.00019726,2]
[421440536,1777654253000,-14046.12,0.00019726,2]
[421440535,1777654253000,-500.0,0.00019726,2]
[421440534,1777654253000,-500.0,0.00019726,2]
[421440538,1777654253000,-1325.23,0.00019726,2]
[421440539,1777654253000,-500.0,0.00019726,2]
[421440549,1777654253000,-500.0,0.00019726,2]
[421440550,1777654253000,-500.0,0.00019726,2]
[421440540,1777654253000,-12989.29,0.00019726,2]
[421440551,1777654253000,-368.03393369,0.00019726,2]
[421440547,1777654253000,-17828.73,0.00019726,2]
[421440541,1777654253000,-500.0,0.00019726,2]
[421440545,1777654253000,-500.0,0.00019726,2]
[421440543,1777654253000,-500.0,0.00019726,2]
[421440542,1777654253000,-559.81,0.00019726,2]
[421440548,1777654253000,-9704.09,0.00019726,2]
[421440544,1777654253000,-321.52795862,0.00019726,2]
[421440553,1777654253000,-2040.88,0.00019726,2]
[421440563,1777654253000,-1466.72,0.00019726,2]
[421440564,1777654253000,-500.0,0.00019726,2]
[421440552,1777654253000,-500.0,0.00019726,2]
[421440557,1777654253000,-411.32445089,0.00019726,2]
[421440558,1777654253000,-15203.3,0.00019726,2]
[421440556,1777654253000,-2490.25,0.00019726,2]
[421440554,1777654253000,-562.63,0.00019726,2]
[421440555,1777654253000,-7773.49,0.00019726,2]
[421440559,1777654253000,-1000.0,0.00019726,2]
[421440561,1777654253000,-691.32,0.00019726,2]
[421440562,1777654253000,-500.0,0.00019726,2]
[421440591,1777654253000,-267.65456593,0.00019773,2]
[421440595,1777654253000,-155.1220599,0.00019773,2]
[421440650,1777654253000,-166.00936287,0.00019773,2]
[421440642,1777654253000,-500.0,0.00019773,2]
[421440632,1777654253000,-500.0,0.00019773,2]
[421440638,1777654253000,-500.0,0.00019773,2]
[421440641,1777654253000,-500.0,0.00019773,2]
[421440634,1777654253000,-500.0,0.00019773,2]
[421440635,1777654253000,-500.0,0.00019773,2]
[421440629,1777654253000,-500.0,0.00019773,2]
[421440637,1777654253000,-500.0,0.00019773,2]
[421440643,1777654253000,-500.0,0.00019773,2]
[421440645,1777654253000,-500.0,0.00019773,2]
[421440648,1777654253000,-311.9030468,0.00019773,2]
[421440647,1777654253000,-500.0,0.00019773,2]
[421440646,1777654253000,-500.0,0.00019773,2]
[421440644,1777654253000,-160.71383635,0.00019773,2]
[421440654,1777654253000,-593.1223244,0.000198,7]
[421440649,1777654253000,-500.0,0.00019773,2]
[421440656,1777654253000,-3498.090168,0.000198,14]
[421440652,1777654253000,-161.63431762,0.00019773,2]
[421440655,1777654253000,-383.36182483,0.000198,7]
[421440651,1777654253000,-500.0,0.00019773,2]
[421440653,1777654253000,-500.0,0.00019773,2]
[421440658,1777654253000,-151.0,0.00019802,5]
[421440660,1777654253000,-1500.0,0.00019812,2]
[421440657,1777654253000,-349081.87521957,0.000198,2]
[421440662,1777654253000,-1500.0,0.00019812,2]
[421440661,1777654253000,-1501.408159,0.00019812,2]
[421440663,1777654253000,-1500.0,0.00019812,2]
[421440659,1777654253000,-1500.0,0.00019812,2]
[421440594,1777654253000,-500.0,0.00019773,2]
[421440633,1777654253000,-500.0,0.00019773,2]
[421440636,1777654253000,-500.0,0.00019773,2]
[421440639,1777654253000,-500.0,0.00019773,2]
[421440640,1777654253000,-500.0,0.00019773,2]
[421440598,1777654253000,-500.0,0.00019773,2]
[421440597,1777654253000,-500.0,0.00019773,2]
[421440603,1777654253000,-500.0,0.00019773,2]
[421440602,1777654253000,-500.0,0.00019773,2]
[421440614,1777654253000,-500.0,0.00019773,2]
[421440613,1777654253000,-596.61406382,0.00019773,2]
[421440604,1777654253000,-500.0,0.00019773,2]
[421440605,1777654253000,-500.0,0.00019773,2]
[421440631,1777654253000,-500.0,0.00019773,2]
[421440608,1777654253000,-209.25680166,0.00019773,2]
[421440609,1777654253000,-500.0,0.00019773,2]
[421440607,1777654253000,-500.65966177,0.00019773,2]
[421440611,1777654253000,-223.32489489,0.00019773,2]
[421440610,1777654253000,-500.0,0.00019773,2]
[421440612,1777654253000,-500.0,0.00019773,2]
[421440606,1777654253000,-501.02081964,0.00019773,2]
[421440618,1777654253000,-161.9429171,0.00019773,2]
[421440630,1777654253000,-531.08838571,0.00019773,2]
[421440615,1777654253000,-500.0,0.00019773,2]
[421440625,1777654253000,-165.73761387,0.00019773,2]
[421440628,1777654253000,-166.31678658,0.00019773,2]
[421440621,1777654253000,-246.58487065,0.00019773,2]
[421440622,1777654253000,-500.0,0.00019773,2]
[421440623,1777654253000,-168.5322419,0.00019773,2]
[421440616,1777654253000,-159.86752208,0.00019773,2]
[421440617,1777654253000,-500.0,0.00019773,2]
[421440624,1777654253000,-500.63420326,0.00019773,2]
[421440619,1777654253000,-526.35832162,0.00019773,2]
[421440620,1777654253000,-500.0,0.00019773,2]
[421440627,1777654253000,-500.0,0.00019773,2]
[421440626,1777654253000,-500.0,0.00019773,2]
[421440692,1777654254000,-500.0,0.00019973,2]
[421440683,1777654254000,-558.14200477,0.00019917,30]
[421440685,1777654254000,-558.14200477,0.00019921,30]
[421440689,1777654254000,-500.0,0.00019973,2]
[421440677,1777654254000,-558.14200477,0.00019905,30]
[421440688,1777654254000,-500.0,0.00019973,2]
[421440679,1777654254000,-558.14200477,0.00019909,30]
[421440691,1777654254000,-500.0,0.00019973,2]
[421440696,1777654254000,-500.0,0.00019973,2]
[421440690,1777654254000,-573.7434829,0.00019973,2]
[421440695,1777654254000,-204.19127881,0.00019973,2]
[421440700,1777654254000,-500.0,0.00019973,2]
[421440699,1777654254000,-500.0,0.00019973,2]
[421440698,1777654254000,-500.0,0.00019973,2]
[421440682,1777654254000,-558.14200477,0.00019915,30]
[421440697,1777654254000,-500.0,0.00019973,2]
[421440693,1777654254000,-500.0,0.00019973,2]
[421440684,1777654254000,-558.14200477,0.00019919,30]
[421440694,1777654254000,-500.0,0.00019973,2]
[421440681,1777654254000,-558.14200477,0.00019913,30]
[421440701,1777654254000,-308.22160206,0.00019973,2]
[421440665,1777654254000,-1500.0,0.00019812,2]
[421440675,1777654254000,-558.14200477,0.00019901,30]
[421440672,1777654254000,-3348.75202861,0.00019899,2]
[421440668,1777654254000,-593.1223244,0.00019825,7]
[421440666,1777654254000,-1500.0,0.00019812,2]
[421440671,1777654254000,-212.05,0.00019876,7]
[421440664,1777654254000,-1500.0,0.00019812,2]
[421440667,1777654254000,-1681.644587,0.00019812,2]
[421440669,1777654254000,-383.36182483,0.00019825,7]
[421440670,1777654254000,-759.7899745,0.00019854,2]
[421440674,1777654254000,-248.0,0.000199,2]
[421440673,1777654254000,-2050.0,0.000199,2]
[421440676,1777654254000,-558.14200477,0.00019903,30]
[421440680,1777654254000,-558.14200477,0.00019911,30]
[421440678,1777654254000,-558.14200477,0.00019907,30]
[421440686,1777654254000,-558.14200477,0.00019923,30]
[421440687,1777654254000,-1116.18400954,0.00019925,30]
[421440705,1777654254000,-500.0,0.00019973,2]
[421440713,1777654254000,-161.96829246,0.00019973,2]
[421440704,1777654254000,-500.0,0.00019973,2]
[421440726,1777654254000,-500.0,0.00019973,2]
[421440731,1777654254000,-383.36182483,0.00019978,7]
[421440732,1777654254000,-383.36182483,0.00019978,7]
[421440728,1777654254000,-218.41830605,0.00019973,2]
[421440729,1777654254000,-593.1223244,0.00019978,7]
[421440730,1777654254000,-593.1223244,0.00019978,7]
[421440727,1777654254000,-500.0,0.00019973,2]
[421440733,1777654254000,-1010.772978,0.0001998,5]
[421440737,1777654254000,-150.0,0.0002,2]
[421440734,1777654254000,-29269.11249982,0.0002,20]
[421440735,1777654254000,-1000.0,0.0002,2]
[421440736,1777654254000,-200.0,0.0002,10]
[421440739,1777654254000,-403737.60983394,0.0002,2]
[421440738,1777654254000,-601.0,0.0002,2]
[421440740,1777654254000,-298.54832046,0.0002,14]
[421440742,1777654254000,-187042.50426272,0.0002,2]
[421440741,1777654254000,-151.55000802,0.0002,2]
[421440723,1777654254000,-500.0,0.00019973,2]
[421440703,1777654254000,-500.0,0.00019973,2]
[421440724,1777654254000,-500.0,0.00019973,2]
[421440721,1777654254000,-500.0,0.00019973,2]
[421440706,1777654254000,-500.0,0.00019973,2]
[421440707,1777654254000,-162.47690134,0.00019973,2]
[421440709,1777654254000,-500.0,0.00019973,2]
[421440712,1777654254000,-500.0,0.00019973,2]
[421440702,1777654254000,-500.0,0.00019973,2]
[421440743,1777654254000,-19324.05634671,0.0002,2]
[421440708,1777654254000,-500.0,0.00019973,2]
[421440725,1777654254000,-320.32775031,0.00019973,2]
[421440711,1777654254000,-500.0,0.00019973,2]
[421440715,1777654254000,-500.0,0.00019973,2]
[421440720,1777654254000,-500.0,0.00019973,2]
[421440719,1777654254000,-500.0,0.00019973,2]
[421440716,1777654254000,-500.0,0.00019973,2]
[421440714,1777654254000,-500.0,0.00019973,2]
[421440722,1777654254000,-167.46539348,0.00019973,2]
[421440718,1777654254000,-500.0,0.00019973,2]
[421440717,1777654254000,-500.0,0.00019973,2]
[421440710,1777654254000,-500.0,0.00019973,2]
[421440744,1777654255000,-8910.10511955,0.0002,2]
[421440746,1777654255000,-905.2,0.00019178,2]
[421440745,1777654255000,-345.92914224,0.0002,2]
[421440748,1777654255000,-946.96,0.00019726,2]
[421440750,1777654255000,-20961.02186721,0.0002,2]
[421440747,1777654255000,-905.2,0.00019452,2]
[421440749,1777654255000,-905.2,0.00019726,2]
[421440753,1777654256000,-11642.11477807,0.0002,2]
[421440751,1777654256000,-1844.3,0.00018986,2]
[421440752,1777654256000,-844.00017837,0.00018986,2]
[421440772,1777654530000,168.0,0.0001836,120]
[421440911,1777655431000,-218.47941048,0.00010902,2]
[421440903,1777655431000,-481.47817671,0.00010214,2]
[421440905,1777655431000,-1084.47163378,0.00010214,2]
[421440909,1777655431000,-5000.0,0.00010421,2]
[421440915,1777655431000,-199.99255098,0.00011773,2]
[421440913,1777655431000,-100.00744902,0.00011773,2]
[421440917,1777655431000,-210.01977176,0.00011775,2]
[421440907,1777655431000,-380.428899,0.00010317,2]
[421440919,1777655431000,-13.90850555,0.00012472,2]
[421441123,1777655438000,-6649.99362555,0.00012472,2]
[421441124,1777655438000,-596.0,0.00012472,2]
[421441170,1777655439000,-1068.747173,0.00013699,2]
[421441169,1777655439000,-1412.707458,0.00013699,2]
[421441166,1777655439000,-500.0,0.00013698,2]
[421441165,1777655439000,-500.0,0.00013698,2]
[421441164,1777655439000,-253.13,0.00013698,2]
[421441163,1777655439000,-500.0,0.00013698,2]
[421441160,1777655439000,-500.0,0.00013698,2]
[421441171,1777655439000,-1000.0,0.00013699,2]
[421441161,1777655439000,-500.0,0.00013698,2]
[421441159,1777655439000,-500.0,0.00013698,2]
[421441167,1777655439000,-500.0,0.00013698,2]
[421441162,1777655439000,-500.0,0.00013698,2]
[421441168,1777655439000,-1000.0,0.00013699,2]
[421441183,1777655439000,-500.0,0.00014174,2]
[421441174,1777655439000,-500.0,0.00013998,2]
[421441184,1777655439000,-500.0,0.00014174,2]
[421441177,1777655439000,-500.0,0.00013999,2]
[421441173,1777655439000,-500.0,0.00013998,2]
[421441175,1777655439000,-500.0,0.00013998,2]
[421441176,1777655439000,-500.0,0.00013998,2]
[421441182,1777655439000,-500.0,0.00013999,2]
[421441178,1777655439000,-500.0,0.00013999,2]
[421441181,1777655439000,-500.0,0.00013999,2]
[421441180,1777655439000,-500.0,0.00013999,2]
[421441179,1777655439000,-500.0,0.00013999,2]
[421441152,1777655439000,-500.0,0.00013698,2]
[421441172,1777655439000,-600.0,0.00013971,2]
[421441149,1777655439000,-500.0,0.00013698,2]
[421441185,1777655439000,-500.0,0.00014174,2]
[421441154,1777655439000,-500.0,0.00013698,2]
[421441125,1777655439000,-300.0,0.00012482,2]
[421441126,1777655439000,-300.0,0.00012482,2]
[421441128,1777655439000,-300.0,0.00012482,2]
[421441127,1777655439000,-300.0,0.00012482,2]
[421441129,1777655439000,-300.0,0.00012482,2]
[421441140,1777655439000,-257.80570437,0.00012902,2]
[421441134,1777655439000,-300.0,0.00012482,2]
[421441131,1777655439000,-300.0,0.00012482,2]
[421441135,1777655439000,-300.0,0.00012482,2]
[421441130,1777655439000,-300.0,0.00012482,2]
[421441132,1777655439000,-300.0,0.00012482,2]
[421441136,1777655439000,-300.0,0.00012482,2]
[421441133,1777655439000,-300.0,0.00012482,2]
[421441139,1777655439000,-300.0,0.00012482,2]
[421441137,1777655439000,-300.0,0.00012482,2]
[421441138,1777655439000,-300.0,0.00012482,2]
[421441141,1777655439000,-420.0,0.00012927,2]
[421441142,1777655439000,-151.0,0.00012959,2]
[421441143,1777655439000,-4243.34081539,0.00013599,2]
[421441144,1777655439000,-500.0,0.00013698,2]
[421441146,1777655439000,-500.0,0.00013698,2]
[421441156,1777655439000,-500.0,0.00013698,2]
[421441157,1777655439000,-383.94031892,0.00013698,2]
[421441145,1777655439000,-500.0,0.00013698,2]
[421441158,1777655439000,-500.0,0.00013698,2]
[421441151,1777655439000,-500.0,0.00013698,2]
[421441148,1777655439000,-500.0,0.00013698,2]
[421441150,1777655439000,-500.0,0.00013698,2]
[421441186,1777655439000,-587.0,0.00014194,2]
[421441147,1777655439000,-500.0,0.00013698,2]
[421441197,1777655439000,-500.0,0.00016516,2]
[421441223,1777655439000,-500.0,0.00017415,2]
[421441227,1777655439000,-500.0,0.00017415,2]
[421441225,1777655439000,-500.0,0.00017415,2]
[421441229,1777655439000,-500.0,0.00017415,2]
[421441224,1777655439000,-500.0,0.00017415,2]
[421441222,1777655439000,-500.0,0.00017415,2]
[421441231,1777655439000,-500.0,0.00017415,2]
[421441241,1777655439000,-7211.48793417,0.00017416,2]
[421441242,1777655439000,-5000.0,0.00017476,2]
[421441230,1777655439000,-455.24734367,0.00017415,2]
[421441238,1777655439000,-500.0,0.00017415,2]
[421441233,1777655439000,-500.0,0.00017415,2]
[421441228,1777655439000,-500.0,0.00017415,2]
[421441232,1777655439000,-500.0,0.00017415,2]
[421441234,1777655439000,-406.59595626,0.00017415,2]
[421441239,1777655439000,-500.0,0.00017415,2]
[421441236,1777655439000,-500.0,0.00017415,2]
[421441237,1777655439000,-500.0,0.00017415,2]
[421441235,1777655439000,-500.0,0.00017415,2]
[421441243,1777655439000,-232.99579624,0.00017477,2]
[421441244,1777655439000,-500.0,0.00017477,2]
[421441247,1777655439000,-500.0,0.00017477,2]
[421441245,1777655439000,-500.0,0.00017477,2]
[421441248,1777655439000,-500.0,0.00017477,2]
[421441246,1777655439000,-500.0,0.00017477,2]
[421441250,1777655439000,-500.0,0.00017477,2]
[421441240,1777655439000,-500.0,0.00017415,2]
[421441221,1777655439000,-500.0,0.00017415,2]
[421441226,1777655439000,-358.85816177,0.00017415,2]
[421441217,1777655439000,-500.0,0.00017415,2]
[421441196,1777655439000,-4243.34081537,0.00016299,2]
[421441188,1777655439000,-1412.707458,0.00014658,2]
[421441198,1777655439000,-198.32682197,0.00016516,2]
[421441187,1777655439000,-4243.34081537,0.00014499,2]
[421441192,1777655439000,-4243.34081537,0.00015399,2]
[421441191,1777655439000,-720.0,0.00015368,2]
[421441190,1777655439000,-312.866038,0.00015068,2]
[421441249,1777655439000,-630.66699197,0.00017477,2]
[421441189,1777655439000,-297.13199825,0.00014902,2]
[421441193,1777655439000,-359.9100234,0.00015509,2]
[421441199,1777655439000,-500.0,0.00016516,2]
[421441214,1777655439000,-500.0,0.00017415,2]
[421441209,1777655439000,-220.2009867,0.00017376,2]
[421441210,1777655439000,-1493.82311482,0.000174,2]
[421441194,1777655439000,-193.0,0.00015586,2]
[421441200,1777655439000,-500.0,0.00016516,2]
[421441201,1777655439000,-336.45829214,0.00016902,2]
[421441218,1777655439000,-500.0,0.00017415,2]
[421441219,1777655439000,-605.15711442,0.00017415,2]
[421441216,1777655439000,-500.0,0.00017415,2]
[421441208,1777655439000,-500.0,0.00017352,2]
[421441207,1777655439000,-500.0,0.00017352,2]
[421441195,1777655439000,-2067.79839044,0.00016,2]
[421441202,1777655439000,-864.0,0.00016905,2]
[421441211,1777655439000,-245.52879096,0.00017415,2]
[421441204,1777655439000,-169.0,0.00017148,2]
[421441206,1777655439000,-4243.34081537,0.000172,2]
[421441215,1777655439000,-500.0,0.00017415,2]
[421441213,1777655439000,-500.0,0.00017415,2]
[421441255,1777655440000,-9544.0872653,0.00017478,2]
[421441253,1777655440000,-910249.59441703,0.00017478,2]
[421441254,1777655440000,-826943.89846736,0.00017478,2]
[421441251,1777655440000,-500.0,0.00017477,2]
[421441252,1777655440000,-500.0,0.00017477,2]
[421441258,1777655440000,-5000.0,0.00017478,2]
[421441256,1777655440000,-1477.3,0.00017478,2]
[421441260,1777655440000,-78174.77187285,0.00017478,2]
[421441261,1777655440000,-379.285,0.00017478,2]
[421441259,1777655440000,-15468.67238213,0.00017478,2]
[421441257,1777655440000,-985.61827782,0.00017478,2]
[421441262,1777655440000,-469.07870949,0.00017478,2]
[421441300,1777655443000,-426607.05065764,0.00017478,2]
[421441310,1777655446000,-2966.37331664,0.00017478,2]
[421441309,1777655446000,-21879.4161093,0.00017478,2]
[421441311,1777655446000,-756.85469116,0.00017478,2]
[421441364,1777656631000,-458.20547818,0.00011546,2]
[421441389,1777656631000,-10000.0,0.00014449,2]
[421441387,1777656631000,-500.0,0.00014448,2]
[421441385,1777656631000,-1244.39082206,0.00014175,2]
[421441383,1777656631000,-231.6126448,0.00013841,2]
[421441380,1777656631000,-1000.0,0.00013699,2]
[421441370,1777656631000,-196.28190238,0.00011841,2]
[421441371,1777656631000,-534.373587,0.00013699,2]
[421441368,1777656631000,-480.0,0.00011663,2]
[421441366,1777656631000,-2652.18542209,0.00011663,2]
[421441362,1777656631000,-5000.0,0.00011431,2]
[421441403,1777656632000,-10000.0,0.00014549,2]
[421441399,1777656632000,-500.0,0.00014548,2]
[421441395,1777656632000,-458.373,0.00014548,2]
[421441397,1777656632000,-187.2992728,0.00014548,2]
[421441391,1777656632000,-4715.99857787,0.00014475,2]
[421441401,1777656632000,-500.0,0.00014548,2]
[421441393,1777656632000,-500.0,0.00014548,2]
[421441407,1777656632000,-500.0,0.00014648,2]
[421441411,1777656632000,-3226.92117656,0.00014775,2]
[421441405,1777656632000,-5099.0620447,0.00014575,2]
[421441425,1777656632000,-180.0651979,0.00016116,2]
[421441409,1777656632000,-6192.64052358,0.00014675,2]
[421441419,1777656632000,-567.23967938,0.00016114,2]
[421441417,1777656632000,-266.94338723,0.00015841,2]
[421441424,1777656632000,-545.17732847,0.00016114,2]
[421441413,1777656632000,-3224.88127921,0.00014775,2]
[421441415,1777656632000,-250.29283,0.00015068,2]
[421441421,1777656632000,-206.53979575,0.00016114,2]
[421441556,1777656638000,-151.0,0.000169,2]
[421441561,1777656638000,-500.0,0.00016958,2]
[421441560,1777656638000,-500.0,0.00016958,2]
[421441569,1777656638000,-500.0,0.00017273,2]
[421441570,1777656638000,-500.0,0.00017273,2]
[421441571,1777656638000,-500.0,0.00017373,2]
[421441562,1777656638000,-200.0,0.00017228,2]
[421441568,1777656638000,-500.0,0.00017273,2]
[421441567,1777656638000,-500.0,0.00017273,2]
[421441580,1777656638000,-500.0,0.00017377,2]
[421441564,1777656638000,-500.0,0.00017273,2]
[421441566,1777656638000,-500.0,0.00017273,2]
[421441565,1777656638000,-599.00848013,0.00017273,2]
[421441572,1777656638000,-500.0,0.00017375,2]
[421441582,1777656638000,-500.0,0.00017377,2]
[421441583,1777656638000,-500.0,0.00017377,2]
[421441584,1777656638000,-500.0,0.00017377,2]
[421441573,1777656638000,-500.0,0.00017377,2]
[421441555,1777656638000,-1508.0,0.0001686,2]
[421441563,1777656638000,-500.0,0.00017273,2]
[421441552,1777656638000,-500.0,0.00016857,2]
[421441539,1777656638000,-163.09705737,0.00016857,2]
[421441550,1777656638000,-311.94052132,0.00016857,2]
[421441532,1777656638000,-357.90899649,0.00016116,2]
[421441530,1777656638000,-1538.17840722,0.00016116,2]
[421441537,1777656638000,-5210.06640085,0.00016116,2]
[421441538,1777656638000,-500.0,0.00016857,2]
[421441542,1777656638000,-500.0,0.00016857,2]
[421441543,1777656638000,-500.0,0.00016857,2]
[421441544,1777656638000,-500.0,0.00016857,2]
[421441541,1777656638000,-500.0,0.00016857,2]
[421441540,1777656638000,-500.0,0.00016857,2]
[421441545,1777656638000,-500.0,0.00016857,2]
[421441546,1777656638000,-500.0,0.00016857,2]
[421441547,1777656638000,-500.0,0.00016857,2]
[421441557,1777656638000,-151.0,0.000169,2]
[421441558,1777656638000,-151.0,0.000169,2]
[421441559,1777656638000,-500.0,0.00016958,2]
[421441548,1777656638000,-500.0,0.00016857,2]
[421441549,1777656638000,-241.46689438,0.00016857,2]
[421441551,1777656638000,-500.0,0.00016857,2]
[421441554,1777656638000,-500.0,0.00016857,2]
[421441553,1777656638000,-500.0,0.00016857,2]
[421441577,1777656638000,-500.0,0.00017377,2]
[421441598,1777656638000,-152.0,0.00017502,7]
[421441578,1777656638000,-500.0,0.00017377,2]
[421441606,1777656638000,-3697.22839412,0.000177,2]
[421441609,1777656638000,-1000.0,0.00017821,2]
[421441610,1777656638000,-1000.0,0.00017821,2]
[421441603,1777656638000,-152.0,0.00017548,7]
[421441602,1777656638000,-152.0,0.00017548,7]
[421441605,1777656638000,-152.0,0.00017548,7]
[421441612,1777656638000,-1000.0,0.00017821,2]
[421441613,1777656638000,-250.0,0.00017821,2]
[421441611,1777656638000,-1000.0,0.00017821,2]
[421441600,1777656638000,-152.0,0.0001753,7]
[421441623,1777656638000,-537.6845,0.0001786,2]
[421441618,1777656638000,-302.27412966,0.00017841,2]
[421441616,1777656638000,-1000.0,0.00017821,2]
[421441620,1777656638000,-163.54315146,0.0001786,2]
[421441617,1777656638000,-600.0,0.00017826,2]
[421441614,1777656638000,-1000.0,0.00017821,2]
[421441615,1777656638000,-1000.0,0.00017821,2]
[421441619,1777656638000,-445.202766,0.0001786,2]
[421441624,1777656638000,-537.6845,0.0001786,2]
[421441579,1777656638000,-500.0,0.00017377,2]